[Event "*** Titled Tuesday Blitz"]
[Site "Chess.com"]
[Date "2021.03.02"]
[Round "4"]
[White "MarcLonoff"]
[Black "A-S-00"]
[Result "0-1"]
[WhiteElo "2119"]
[BlackElo "2393"]
[TimeControl "180+1"]
[EndTime "10:35:48 PST"]
[Termination "A-S-00 won by resignation"]

1. c4 {[%clk 0:02:58.4]} 1... e5 {[%clk 0:02:59.3]} 2. Nc3 {[%clk 0:02:57.8]}
2... Nf6 {[%clk 0:02:59.5]} 3. g3 {[%clk 0:02:57.4]} 3... c6 {[%clk 0:02:58.1]}
4. d4 {[%clk 0:02:48.9]} 4... d5 {[%clk 0:02:59]} 5. dxe5 {[%clk 0:02:47.9]}
5... Nfd7 {[%clk 0:02:55.6]} 6. Nf3 {[%clk 0:02:35.9]} 6... dxc4 {[%clk
0:02:52.5]} 7. Bg2 {[%clk 0:02:33.5]} 7... Be7 {[%clk 0:02:48.4]} 8. O-O {[%clk
0:02:26.7]} 8... O-O {[%clk 0:02:46.4]} 9. Nd2 {[%clk 0:02:18.1]} 9... Nxe5
{[%clk 0:02:44]} 10. h3 {[%clk 0:02:13.6]} 10... a6 {[%clk 0:01:46.8]} 11. f4
{[%clk 0:02:12.7]} 11... Ng6 {[%clk 0:01:46.5]} 12. Nxc4 {[%clk 0:02:11.8]}
12... b5 {[%clk 0:01:46.5]} 13. Qxd8 {[%clk 0:01:44.2]} 13... Rxd8 {[%clk
0:01:44.2]} 14. Nb6 {[%clk 0:01:42.2]} 14... Bc5+ {[%clk 0:01:44.1]} 15. Kh2
{[%clk 0:01:39.9]} 15... Bxb6 {[%clk 0:01:44.2]} 0-1

[Event "*** Titled Tuesday Blitz"]
[Site "Chess.com"]
[Date "2021.03.02"]
[Round "4"]
[White "Maddie"]
[Black "PavelChernomordik"]
[Result "0-1"]
[WhiteElo "2084"]
[BlackElo "2388"]
[TimeControl "180+1"]
[EndTime "10:35:56 PST"]
[Termination "PavelChernomordik won by resignation"]

1. d4 {[%clk 0:03:00.9]} 1... g6 {[%clk 0:02:59.6]} 2. e3 {[%clk 0:03:00]} 2...
Bg7 {[%clk 0:02:59.6]} 3. Bd3 {[%clk 0:03:00.1]} 3... d6 {[%clk 0:02:59.2]} 4.
f4 {[%clk 0:03:00.6]} 4... c5 {[%clk 0:02:57.1]} 5. c3 {[%clk 0:02:59.4]} 5...
Nf6 {[%clk 0:02:54.9]} 6. Nf3 {[%clk 0:02:58.9]} 6... O-O {[%clk 0:02:53.9]} 7.
O-O {[%clk 0:02:59]} 7... Nc6 {[%clk 0:02:53.7]} 8. Nbd2 {[%clk 0:02:57.7]} 8...
e5 {[%clk 0:02:52.3]} 9. fxe5 {[%clk 0:02:56.6]} 9... dxe5 {[%clk 0:02:50.4]}
10. Ne4 {[%clk 0:02:46.1]} 10... cxd4 {[%clk 0:02:45.1]} 11. cxd4 {[%clk
0:02:41]} 11... exd4 {[%clk 0:02:44]} 12. exd4 {[%clk 0:02:40.1]} 12... Nxe4
{[%clk 0:02:33.1]} 13. Bxe4 {[%clk 0:02:37.8]} 13... Nxd4 {[%clk 0:02:33.4]} 14.
Bg5 {[%clk 0:02:30.6]} 14... Nxf3+ {[%clk 0:02:31.8]} 15. Bxf3 {[%clk
0:02:19.5]} 15... Qxg5 {[%clk 0:02:32.7]} 16. Qb3 {[%clk 0:02:13.7]} 16... Be6
{[%clk 0:02:27.9]} 17. Qxb7 {[%clk 0:02:11.3]} 17... Rab8 {[%clk 0:02:24]} 18.
Qxa7 {[%clk 0:02:10.4]} 18... Rxb2 {[%clk 0:02:23]} 19. Rab1 {[%clk 0:01:59.6]}
19... Rxa2 {[%clk 0:02:20.7]} 20. Qc7 {[%clk 0:01:57]} 20... Bd4+ {[%clk
0:02:14.4]} 21. Kh1 {[%clk 0:01:56.5]} 21... Bd5 {[%clk 0:02:12.8]} 22. Bxd5
{[%clk 0:01:46.5]} 22... Qxd5 {[%clk 0:02:11.4]} 23. Rf3 {[%clk 0:01:42.7]}
23... Be5 {[%clk 0:02:00.8]} 24. Rbf1 {[%clk 0:01:37.3]} 24... Bxc7 {[%clk
0:01:58.8]} 0-1

[Event "*** Titled Tuesday Blitz"]
[Site "Chess.com"]
[Date "2021.03.02"]
[Round "4"]
[White "Rodalquilar"]
[Black "PlotnikovPavel"]
[Result "1-0"]
[WhiteElo "2639"]
[BlackElo "2476"]
[TimeControl "180+1"]
[EndTime "10:36:14 PST"]
[Termination "Rodalquilar won by resignation"]

1. d4 {[%clk 0:03:00.9]} 1... e6 {[%clk 0:02:57.2]} 2. e4 {[%clk 0:03:00.6]}
2... d5 {[%clk 0:02:56.7]} 3. exd5 {[%clk 0:03:01.5]} 3... exd5 {[%clk
0:02:56.5]} 4. Nf3 {[%clk 0:03:02.1]} 4... Nf6 {[%clk 0:02:53.7]} 5. Bd3 {[%clk
0:03:02.2]} 5... Be7 {[%clk 0:02:53.5]} 6. h3 {[%clk 0:03:00.5]} 6... O-O {[%clk
0:02:38.8]} 7. O-O {[%clk 0:03:00.4]} 7... Re8 {[%clk 0:02:15.1]} 8. Re1 {[%clk
0:02:55.7]} 8... Nbd7 {[%clk 0:02:11]} 9. Nc3 {[%clk 0:02:43.3]} 9... c6 {[%clk
0:02:04.8]} 10. Bf4 {[%clk 0:02:43.1]} 10... Nf8 {[%clk 0:02:01.2]} 11. Ne5
{[%clk 0:02:42.2]} 11... Ng6 {[%clk 0:02:00.6]} 12. Bg3 {[%clk 0:02:40.3]} 12...
Bd6 {[%clk 0:01:44.9]} 13. Qf3 {[%clk 0:02:31.8]} 13... Bd7 {[%clk 0:01:44.2]}
14. Nxf7 {[%clk 0:02:06.4]} 14... Kxf7 {[%clk 0:01:42.9]} 15. Bxd6 {[%clk
0:02:06.5]} 15... Bxh3 {[%clk 0:01:41.2]} 16. Rxe8 {[%clk 0:01:58.6]} 16... Kxe8
{[%clk 0:01:36.3]} 17. Bxg6+ {[%clk 0:01:48.9]} 17... hxg6 {[%clk 0:01:35.8]}
18. Re1+ {[%clk 0:01:48.9]} 18... Kf7 {[%clk 0:01:35.9]} 19. Be7 {[%clk
0:01:43.6]} 19... Bg4 {[%clk 0:01:32.5]} 20. Bxd8 {[%clk 0:01:36.1]} 20... Bxf3
{[%clk 0:01:32]} 21. Bxf6 {[%clk 0:01:36.1]} 1-0

[Event "*** Titled Tuesday Blitz"]
[Site "Chess.com"]
[Date "2021.03.02"]
[Round "4"]
[White "gatocorbis"]
[Black "SanQui14"]
[Result "0-1"]
[WhiteElo "2059"]
[BlackElo "2379"]
[TimeControl "180+1"]
[EndTime "10:36:23 PST"]
[Termination "SanQui14 won on time"]

1. e4 {[%clk 0:03:00.9]} 1... c5 {[%clk 0:02:57.9]} 2. c3 {[%clk 0:02:59.8]}
2... g6 {[%clk 0:02:57.9]} 3. Nf3 {[%clk 0:02:58.4]} 3... Bg7 {[%clk 0:02:57.8]}
4. d4 {[%clk 0:02:56.6]} 4... cxd4 {[%clk 0:02:58.4]} 5. cxd4 {[%clk 0:02:55.9]}
5... d5 {[%clk 0:02:58.9]} 6. e5 {[%clk 0:02:54.5]} 6... Bg4 {[%clk 0:02:58.3]}
7. h3 {[%clk 0:02:52.9]} 7... Bxf3 {[%clk 0:02:58.2]} 8. Qxf3 {[%clk 0:02:52.2]}
8... Nc6 {[%clk 0:02:58.7]} 9. Be3 {[%clk 0:02:47.4]} 9... Qb6 {[%clk
0:02:52.6]} 10. Qxd5 {[%clk 0:02:31.4]} 10... Qxb2 {[%clk 0:02:51.3]} 11. Bb5
{[%clk 0:02:18.9]} 11... Qxa1 {[%clk 0:02:30.1]} 0-1

[Event "*** Titled Tuesday Blitz"]
[Site "Chess.com"]
[Date "2021.03.02"]
[Round "4"]
[White "hellokostya"]
[Black "The_filthy"]
[Result "1-0"]
[WhiteElo "2580"]
[BlackElo "2338"]
[TimeControl "180+1"]
[EndTime "10:36:49 PST"]
[Termination "hellokostya won by resignation"]

1. d4 {[%clk 0:03:00.9]} 1... d5 {[%clk 0:02:59.4]} 2. c4 {[%clk 0:03:00.3]}
2... c6 {[%clk 0:02:59.7]} 3. Nf3 {[%clk 0:03:00.3]} 3... Nf6 {[%clk 0:02:58.3]}
4. e3 {[%clk 0:02:58.8]} 4... Bf5 {[%clk 0:02:39.6]} 5. Nc3 {[%clk 0:02:58.3]}
5... dxc4 {[%clk 0:02:18.2]} 6. Bxc4 {[%clk 0:02:57.6]} 6... e6 {[%clk
0:02:18.6]} 7. O-O {[%clk 0:02:57.2]} 7... Be7 {[%clk 0:02:17.1]} 8. Qe2 {[%clk
0:02:55.5]} 8... Ne4 {[%clk 0:02:14.3]} 9. Nxe4 {[%clk 0:02:52.6]} 9... Bxe4
{[%clk 0:02:14.5]} 10. Nd2 {[%clk 0:02:51.5]} 10... Bg6 {[%clk 0:02:10.7]} 11.
b3 {[%clk 0:02:48]} 11... Nd7 {[%clk 0:02:07.2]} 12. Bb2 {[%clk 0:02:45.5]}
12... O-O {[%clk 0:01:56.2]} 13. e4 {[%clk 0:02:44.8]} 13... c5 {[%clk
0:01:34.8]} 14. d5 {[%clk 0:02:38.8]} 14... exd5 {[%clk 0:01:32.4]} 15. Bxd5
{[%clk 0:02:31.1]} 15... Rb8 {[%clk 0:01:25]} 16. Rad1 {[%clk 0:02:24.8]} 16...
Qc7 {[%clk 0:01:19.8]} 17. f4 {[%clk 0:02:16.5]} 17... h6 {[%clk 0:01:09.3]} 18.
f5 {[%clk 0:02:10.7]} 18... Bh7 {[%clk 0:01:09.7]} 19. e5 {[%clk 0:02:06.9]}
19... Bg5 {[%clk 0:01:04.6]} 20. Nc4 {[%clk 0:02:01.9]} 20... Rbe8 {[%clk
0:01:00.2]} 21. Nd6 {[%clk 0:01:50.9]} 21... Qxd6 {[%clk 0:00:59]} 22. Bxf7+
{[%clk 0:01:50.5]} 22... Rxf7 {[%clk 0:00:36.5]} 23. Rxd6 {[%clk 0:01:51.4]} 1-0

[Event "*** Titled Tuesday Blitz"]
[Site "Chess.com"]
[Date "2021.03.02"]
[Round "4"]
[White "jposthuma"]
[Black "Coiote53"]
[Result "1-0"]
[WhiteElo "2719"]
[BlackElo "2358"]
[TimeControl "180+1"]
[EndTime "10:37:04 PST"]
[Termination "jposthuma won by resignation"]

1. d4 {[%clk 0:03:00.9]} 1... Nf6 {[%clk 0:02:59.9]} 2. c4 {[%clk 0:03:01.1]}
2... g6 {[%clk 0:02:59.7]} 3. Nc3 {[%clk 0:03:01.1]} 3... d5 {[%clk 0:03:00.1]}
4. cxd5 {[%clk 0:03:02]} 4... Nxd5 {[%clk 0:03:00.8]} 5. Na4 {[%clk 0:03:02.4]}
5... Bg7 {[%clk 0:02:36.2]} 6. e4 {[%clk 0:03:02.3]} 6... Nb6 {[%clk 0:02:36.7]}
7. Be3 {[%clk 0:03:02.5]} 7... O-O {[%clk 0:02:30]} 8. Nf3 {[%clk 0:03:02.4]}
8... Bg4 {[%clk 0:02:30.6]} 9. Nc5 {[%clk 0:03:02]} 9... Nc6 {[%clk 0:02:24.6]}
10. Nxb7 {[%clk 0:03:02.1]} 10... Qb8 {[%clk 0:02:22.2]} 11. Ba6 {[%clk
0:03:02.3]} 11... e5 {[%clk 0:02:19.3]} 12. d5 {[%clk 0:02:50.5]} 12... Nb4
{[%clk 0:02:18.9]} 13. Nc5 {[%clk 0:02:49.2]} 13... N4xd5 {[%clk 0:02:11.5]} 14.
exd5 {[%clk 0:02:45]} 14... e4 {[%clk 0:02:11.5]} 15. Nxe4 {[%clk 0:02:43.5]}
15... Nd7 {[%clk 0:02:01]} 16. O-O {[%clk 0:02:39]} 16... Qxb2 {[%clk
0:02:01.6]} 17. Bd4 {[%clk 0:02:27.2]} 17... Bxd4 {[%clk 0:01:51.1]} 18. Qxd4
{[%clk 0:02:27.3]} 18... Qa3 {[%clk 0:01:48.4]} 19. Be2 {[%clk 0:02:20.5]} 19...
f5 {[%clk 0:01:40.2]} 20. Neg5 {[%clk 0:02:17.1]} 20... Rae8 {[%clk 0:01:35.4]}
21. Ne6 {[%clk 0:02:16.4]} 21... Rf7 {[%clk 0:01:36]} 22. Nfg5 {[%clk
0:02:09.6]} 22... Rfe7 {[%clk 0:01:30.5]} 23. Bxg4 {[%clk 0:02:08.8]} 23... fxg4
{[%clk 0:01:31.2]} 24. Qxg4 {[%clk 0:02:08.1]} 24... Nf6 {[%clk 0:01:28.4]} 25.
Qd4 {[%clk 0:02:08.2]} 25... Nh5 {[%clk 0:01:26.4]} 26. Rac1 {[%clk 0:02:04.3]}
26... Qd6 {[%clk 0:01:26.5]} 27. Rc6 {[%clk 0:02:02.5]} 27... Qd7 {[%clk
0:01:22.6]} 28. Rxc7 {[%clk 0:02:01.8]} 28... Qb5 {[%clk 0:01:18.9]} 29. Rxe7
{[%clk 0:01:59.4]} 29... Rxe7 {[%clk 0:01:19.8]} 30. Rc1 {[%clk 0:01:56.6]}
30... Qb8 {[%clk 0:01:09.6]} 31. g3 {[%clk 0:01:54.9]} 31... h6 {[%clk
0:01:08.2]} 32. Ne4 {[%clk 0:01:53]} 32... Rf7 {[%clk 0:01:01.4]} 33. d6 {[%clk
0:01:48.8]} 33... Kh7 {[%clk 0:00:58.5]} 34. d7 {[%clk 0:01:48.4]} 1-0

[Event "*** Titled Tuesday Blitz"]
[Site "Chess.com"]
[Date "2021.03.02"]
[Round "4"]
[White "ChessWarrior3"]
[Black "Chuchofrio1"]
[Result "0-1"]
[WhiteElo "2093"]
[BlackElo "2291"]
[TimeControl "180+1"]
[EndTime "10:37:04 PST"]
[Termination "Chuchofrio1 won by resignation"]

1. e4 {[%clk 0:03:00.9]} 1... e5 {[%clk 0:02:57.6]} 2. Nf3 {[%clk 0:03:00.7]}
2... Nc6 {[%clk 0:02:56.4]} 3. Bb5 {[%clk 0:03:01.1]} 3... a6 {[%clk 0:02:55]}
4. Ba4 {[%clk 0:03:01.5]} 4... Nf6 {[%clk 0:02:53.9]} 5. O-O {[%clk 0:03:00.9]}
5... Be7 {[%clk 0:02:46.4]} 6. Re1 {[%clk 0:02:59.6]} 6... b5 {[%clk 0:02:46]}
7. Bb3 {[%clk 0:02:59.2]} 7... O-O {[%clk 0:02:46.9]} 8. d4 {[%clk 0:02:58.7]}
8... d6 {[%clk 0:02:32.3]} 9. c3 {[%clk 0:02:55.6]} 9... Bg4 {[%clk 0:02:25.6]}
10. Be3 {[%clk 0:02:55.2]} 10... exd4 {[%clk 0:02:03.2]} 11. cxd4 {[%clk
0:02:54]} 11... Qd7 {[%clk 0:01:39.6]} 12. h3 {[%clk 0:02:43.8]} 12... Bh5
{[%clk 0:01:31.9]} 13. Nc3 {[%clk 0:02:27.6]} 13... Na5 {[%clk 0:01:27.1]} 14.
Bc2 {[%clk 0:02:26.8]} 14... Nc4 {[%clk 0:01:21.9]} 15. Bc1 {[%clk 0:02:26]}
15... Rae8 {[%clk 0:01:12.8]} 16. b3 {[%clk 0:02:25.5]} 16... Nb6 {[%clk
0:01:10.7]} 17. Bb2 {[%clk 0:02:25.5]} 17... Bd8 {[%clk 0:01:05.5]} 18. g4
{[%clk 0:02:14.3]} 18... Nxg4 {[%clk 0:01:04.5]} 19. Nd5 {[%clk 0:01:33.7]}
19... Nxd5 {[%clk 0:01:01.7]} 20. exd5 {[%clk 0:01:34.6]} 20... Rxe1+ {[%clk
0:00:57.1]} 21. Qxe1 {[%clk 0:01:34.2]} 21... Nf6 {[%clk 0:00:54.1]} 22. Kh2
{[%clk 0:01:28.7]} 22... Bxf3 {[%clk 0:00:52]} 0-1

[Event "*** Titled Tuesday Blitz"]
[Site "Chess.com"]
[Date "2021.03.02"]
[Round "4"]
[White "Walter_White_Poland"]
[Black "guillembaches"]
[Result "0-1"]
[WhiteElo "2294"]
[BlackElo "2463"]
[TimeControl "180+1"]
[EndTime "10:37:08 PST"]
[Termination "guillembaches won by resignation"]

1. e4 {[%clk 0:03:00.9]} 1... c5 {[%clk 0:02:59.6]} 2. Nf3 {[%clk 0:03:00.6]}
2... d6 {[%clk 0:03:00.1]} 3. d4 {[%clk 0:03:00.7]} 3... cxd4 {[%clk 0:03:01]}
4. Nxd4 {[%clk 0:03:01.2]} 4... Nf6 {[%clk 0:03:01.6]} 5. Nc3 {[%clk 0:03:01.6]}
5... Nc6 {[%clk 0:03:02.2]} 6. Bg5 {[%clk 0:03:00.3]} 6... e6 {[%clk 0:03:02.7]}
7. Qd2 {[%clk 0:03:00.1]} 7... h6 {[%clk 0:03:03.2]} 8. Bh4 {[%clk 0:02:55.1]}
8... Nxe4 {[%clk 0:03:02.9]} 9. Qe3 {[%clk 0:01:38.9]} 9... Qxh4 {[%clk
0:02:49.2]} 10. Nxe4 {[%clk 0:01:08.4]} 10... d5 {[%clk 0:02:47.1]} 11. Nb5
{[%clk 0:00:29.1]} 11... Qxe4 {[%clk 0:02:25.9]} 12. Qxe4 {[%clk 0:00:29.3]}
12... dxe4 {[%clk 0:02:25.4]} 13. Nc7+ {[%clk 0:00:30.2]} 13... Kd7 {[%clk
0:02:21.7]} 14. Nxa8 {[%clk 0:00:31.1]} 14... b6 {[%clk 0:02:20]} 15. O-O-O+
{[%clk 0:00:30.4]} 15... Bd6 {[%clk 0:02:19.9]} 16. Bb5 {[%clk 0:00:06.8]} 16...
Bb7 {[%clk 0:02:15.6]} 17. Rd2 {[%clk 0:00:06.6]} 17... Ke7 {[%clk 0:02:10.2]}
18. g3 {[%clk 0:00:05.6]} 18... Rxa8 {[%clk 0:02:05.1]} 19. Rhd1 {[%clk
0:00:05.5]} 19... Rd8 {[%clk 0:02:00.1]} 0-1

[Event "*** Titled Tuesday Blitz"]
[Site "Chess.com"]
[Date "2021.03.02"]
[Round "4"]
[White "semchik73"]
[Black "catzapto"]
[Result "0-1"]
[WhiteElo "2272"]
[BlackElo "2066"]
[TimeControl "180+1"]
[EndTime "10:37:13 PST"]
[Termination "catzapto won by resignation"]

1. Nf3 {[%clk 0:03:00.5]} 1... c5 {[%clk 0:03:00]} 2. c4 {[%clk 0:03:00.6]} 2...
Nf6 {[%clk 0:03:00.2]} 3. Nc3 {[%clk 0:03:01.1]} 3... e6 {[%clk 0:03:00.7]} 4.
d4 {[%clk 0:03:01.4]} 4... cxd4 {[%clk 0:03:01.6]} 5. Nxd4 {[%clk 0:03:01.8]}
5... Nc6 {[%clk 0:03:02.5]} 6. e3 {[%clk 0:03:01.8]} 6... Bb4 {[%clk 0:03:02.7]}
7. Be2 {[%clk 0:03:01.1]} 7... d5 {[%clk 0:03:02.8]} 8. cxd5 {[%clk 0:02:58.2]}
8... Nxd5 {[%clk 0:03:03.7]} 9. Bd2 {[%clk 0:02:56.4]} 9... Nxd4 {[%clk
0:03:00.5]} 10. exd4 {[%clk 0:02:56]} 10... O-O {[%clk 0:03:00]} 11. O-O {[%clk
0:02:54]} 11... a6 {[%clk 0:02:53.1]} 12. Bf3 {[%clk 0:02:24]} 12... Nxc3 {[%clk
0:02:46.3]} 13. bxc3 {[%clk 0:02:23.4]} 13... Be7 {[%clk 0:02:46.5]} 14. Rb1
{[%clk 0:02:19]} 14... Rb8 {[%clk 0:02:45.8]} 15. Bf4 {[%clk 0:02:18.8]} 15...
Bd6 {[%clk 0:02:46.2]} 16. Qd2 {[%clk 0:02:18.8]} 16... b5 {[%clk 0:02:39.7]}
17. a4 {[%clk 0:02:17.7]} 17... Bb7 {[%clk 0:02:27]} 18. Bxb7 {[%clk 0:02:11.2]}
18... Rxb7 {[%clk 0:02:26.8]} 19. c4 {[%clk 0:02:07.1]} 19... b4 {[%clk
0:02:14]} 20. c5 {[%clk 0:02:04.1]} 20... Bxf4 {[%clk 0:02:12.5]} 21. Qxf4
{[%clk 0:02:04.4]} 21... a5 {[%clk 0:02:10.7]} 22. c6 {[%clk 0:01:54]} 22... Qc7
{[%clk 0:01:46.9]} 23. Qe5 {[%clk 0:01:15.6]} 23... Qxe5 {[%clk 0:01:42.9]} 24.
dxe5 {[%clk 0:01:14.7]} 24... Rc7 {[%clk 0:01:43.4]} 25. Rbc1 {[%clk 0:01:13.3]}
25... Rfc8 {[%clk 0:01:42.6]} 26. Rfd1 {[%clk 0:01:13.4]} 26... g6 {[%clk
0:01:40.4]} 27. Kf1 {[%clk 0:01:08.8]} 27... Rxc6 {[%clk 0:01:39.4]} 28. Rxc6
{[%clk 0:01:07.9]} 28... Rxc6 {[%clk 0:01:39.2]} 29. Rd8+ {[%clk 0:01:08.3]}
29... Kg7 {[%clk 0:01:38.8]} 30. Ra8 {[%clk 0:01:08.8]} 30... Rc5 {[%clk
0:01:38.8]} 31. f4 {[%clk 0:01:09.1]} 31... b3 {[%clk 0:01:31.3]} 32. Rb8 {[%clk
0:01:08.5]} 32... Rc4 {[%clk 0:01:31.2]} 33. g3 {[%clk 0:01:06.9]} 33... Rb4
{[%clk 0:01:28.7]} 0-1

[Event "*** Titled Tuesday Blitz"]
[Site "Chess.com"]
[Date "2021.03.02"]
[Round "4"]
[White "PSvidler"]
[Black "TheBigBoss04"]
[Result "1-0"]
[WhiteElo "2923"]
[BlackElo "2745"]
[TimeControl "180+1"]
[EndTime "10:37:21 PST"]
[Termination "PSvidler won by resignation"]

1. e4 {[%clk 0:03:00.9]} 1... c5 {[%clk 0:02:59.6]} 2. Nf3 {[%clk 0:02:59.2]}
2... Nc6 {[%clk 0:02:51]} 3. Bb5 {[%clk 0:02:58.4]} 3... d6 {[%clk 0:02:48.9]}
4. O-O {[%clk 0:02:57.7]} 4... Bd7 {[%clk 0:02:49]} 5. Re1 {[%clk 0:02:56.2]}
5... Nf6 {[%clk 0:02:47.1]} 6. c3 {[%clk 0:02:54.7]} 6... a6 {[%clk 0:02:47.2]}
7. Bf1 {[%clk 0:02:53.7]} 7... Bg4 {[%clk 0:02:47.2]} 8. d4 {[%clk 0:02:53.2]}
8... cxd4 {[%clk 0:02:44.5]} 9. cxd4 {[%clk 0:02:52.9]} 9... d5 {[%clk
0:02:44.7]} 10. e5 {[%clk 0:02:47.1]} 10... Ng8 {[%clk 0:02:44.9]} 11. e6 {[%clk
0:02:21]} 11... Bxe6 {[%clk 0:02:08.5]} 12. Rxe6 {[%clk 0:02:17.9]} 12... fxe6
{[%clk 0:02:08.1]} 13. Nc3 {[%clk 0:02:17.5]} 13... Qd6 {[%clk 0:01:30]} 14. g3
{[%clk 0:02:13.2]} 14... e5 {[%clk 0:01:06.1]} 15. dxe5 {[%clk 0:02:11.7]} 15...
Nxe5 {[%clk 0:01:04.5]} 16. Nxe5 {[%clk 0:02:11.6]} 16... Qxe5 {[%clk
0:01:03.9]} 17. Bf4 {[%clk 0:02:11.3]} 17... Qf5 {[%clk 0:00:40.9]} 18. Nxd5
{[%clk 0:02:10.8]} 18... Rc8 {[%clk 0:00:15.3]} 19. Bd3 {[%clk 0:01:47.6]} 19...
Qg4 {[%clk 0:00:03.3]} 1-0

[Event "*** Titled Tuesday Blitz"]
[Site "Chess.com"]
[Date "2021.03.02"]
[Round "4"]
[White "bocah_sakit"]
[Black "Thjop"]
[Result "1-0"]
[WhiteElo "2870"]
[BlackElo "2668"]
[TimeControl "180+1"]
[EndTime "10:37:27 PST"]
[Termination "bocah_sakit won by resignation"]

1. e4 {[%clk 0:03:00.9]} 1... e6 {[%clk 0:03:00]} 2. d4 {[%clk 0:03:00.9]} 2...
d5 {[%clk 0:03:00.9]} 3. Nc3 {[%clk 0:03:01.1]} 3... Bb4 {[%clk 0:03:00.8]} 4.
e5 {[%clk 0:03:01.4]} 4... c5 {[%clk 0:03:00.2]} 5. Bd2 {[%clk 0:03:02]} 5...
Bxc3 {[%clk 0:02:41.1]} 6. Bxc3 {[%clk 0:03:00.5]} 6... Ne7 {[%clk 0:02:40.2]}
7. f4 {[%clk 0:02:58.4]} 7... b6 {[%clk 0:02:33.5]} 8. Nf3 {[%clk 0:02:56.1]}
8... Qc7 {[%clk 0:02:17.9]} 9. Qd2 {[%clk 0:02:55.1]} 9... Ba6 {[%clk
0:02:15.1]} 10. O-O-O {[%clk 0:02:53.8]} 10... Bxf1 {[%clk 0:02:12.5]} 11. Rhxf1
{[%clk 0:02:54.7]} 11... Nbc6 {[%clk 0:02:11.7]} 12. g4 {[%clk 0:02:52.1]} 12...
h5 {[%clk 0:02:00]} 13. h3 {[%clk 0:02:42.9]} 13... hxg4 {[%clk 0:01:56.3]} 14.
hxg4 {[%clk 0:02:43.8]} 14... O-O-O {[%clk 0:01:52.6]} 15. Ng5 {[%clk
0:02:41.8]} 15... cxd4 {[%clk 0:01:50]} 16. Bxd4 {[%clk 0:02:39.5]} 16... Nxd4
{[%clk 0:01:49.9]} 17. Qxd4 {[%clk 0:02:40.4]} 17... Nc6 {[%clk 0:01:48.1]} 18.
Qc3 {[%clk 0:02:39.3]} 18... Kb7 {[%clk 0:01:24.4]} 19. f5 {[%clk 0:02:24.3]}
19... d4 {[%clk 0:00:56.6]} 20. Qf3 {[%clk 0:02:20.1]} 20... exf5 {[%clk
0:00:52.7]} 21. gxf5 {[%clk 0:02:18.3]} 21... Rhe8 {[%clk 0:00:45.3]} 22. e6
{[%clk 0:02:17.2]} 22... f6 {[%clk 0:00:30.2]} 23. Nf7 {[%clk 0:02:16.7]} 23...
Rc8 {[%clk 0:00:29]} 24. Rxd4 {[%clk 0:02:14.3]} 24... Kb8 {[%clk 0:00:21.5]}
25. Rc4 {[%clk 0:01:53.5]} 25... Ne5 {[%clk 0:00:12.6]} 26. Rxc7 {[%clk
0:01:51.7]} 26... Nxf3 {[%clk 0:00:12.4]} 27. Rxc8+ {[%clk 0:01:51.9]} 1-0

[Event "*** Titled Tuesday Blitz"]
[Site "Chess.com"]
[Date "2021.03.02"]
[Round "4"]
[White "Smile2005"]
[Black "doons21"]
[Result "0-1"]
[WhiteElo "2350"]
[BlackElo "2600"]
[TimeControl "180+1"]
[EndTime "10:37:32 PST"]
[Termination "doons21 won by resignation"]

1. Nf3 {[%clk 0:03:00.2]} 1... Nf6 {[%clk 0:02:51.5]} 2. g3 {[%clk 0:03:01.1]}
2... g6 {[%clk 0:02:48.6]} 3. Bg2 {[%clk 0:03:01.4]} 3... Bg7 {[%clk 0:02:47.9]}
4. O-O {[%clk 0:03:02.3]} 4... O-O {[%clk 0:02:48.3]} 5. d3 {[%clk 0:03:02.4]}
5... d5 {[%clk 0:02:47.4]} 6. Nc3 {[%clk 0:03:02.7]} 6... Nc6 {[%clk 0:02:47.3]}
7. e4 {[%clk 0:03:03.2]} 7... e5 {[%clk 0:02:10.9]} 8. Re1 {[%clk 0:03:00.3]}
8... dxe4 {[%clk 0:02:07.6]} 9. Nxe4 {[%clk 0:03:00.1]} 9... Nxe4 {[%clk
0:02:05.5]} 10. dxe4 {[%clk 0:02:50.2]} 10... h6 {[%clk 0:01:55.4]} 11. c3
{[%clk 0:02:49.5]} 11... a5 {[%clk 0:01:54.4]} 12. Be3 {[%clk 0:02:49]} 12...
Be6 {[%clk 0:01:53.2]} 13. Qc2 {[%clk 0:02:48.7]} 13... Qe7 {[%clk 0:01:46.9]}
14. Bf1 {[%clk 0:02:47.8]} 14... f5 {[%clk 0:01:36.2]} 15. exf5 {[%clk
0:02:40.6]} 15... gxf5 {[%clk 0:01:36]} 16. Rad1 {[%clk 0:02:35.3]} 16... a4
{[%clk 0:01:30.8]} 17. Bc1 {[%clk 0:02:34.8]} 17... Bxa2 {[%clk 0:01:29.3]} 18.
Nh4 {[%clk 0:02:29.3]} 18... Bb3 {[%clk 0:01:23.2]} 19. Qe2 {[%clk 0:02:27.9]}
19... Bxd1 {[%clk 0:01:19.9]} 20. Qxd1 {[%clk 0:02:27.7]} 20... Qe6 {[%clk
0:01:17.9]} 21. Qh5 {[%clk 0:02:24]} 21... Ne7 {[%clk 0:01:15.6]} 22. Qf3 {[%clk
0:02:11.5]} 22... e4 {[%clk 0:01:08.6]} 23. Qe3 {[%clk 0:02:05.6]} 23... Nd5
{[%clk 0:01:07.7]} 24. Qc5 {[%clk 0:02:05.3]} 24... c6 {[%clk 0:01:06.6]} 25. c4
{[%clk 0:01:49.6]} 25... Ne7 {[%clk 0:01:03.3]} 26. Qb6 {[%clk 0:01:38.9]} 26...
Qd7 {[%clk 0:00:46.3]} 27. Be2 {[%clk 0:01:31.5]} 27... Bd4 {[%clk 0:00:45.9]}
28. Qb4 {[%clk 0:01:29.4]} 28... c5 {[%clk 0:00:43.6]} 29. Qb6 {[%clk
0:01:26.7]} 29... Ra6 {[%clk 0:00:42.4]} 0-1